Cogmind - Beta 14 *** ADVENTURER MODE // 2024.09.07 @ 21:00:40 Player: Mbreton Result: Self-destructed Performance ------------- Evolutions (5) 2500 Regions Visited (9) 1800 Robots Destroyed (56) 280 Value Destroyed (1861) 1861 Prototype IDs (5) 100 Alien Tech Used (0) 0 Bonus (1078) 1078 TOTAL SCORE: 7619 Bonus ------- Pacifist 200 Follower Combat Kills 178 Entered Garrisons 200 Entered DSFs 500 Cogmind --------- Core Integrity 357/1000 Matter 300/300 Energy 100/100 System Corruption 0% Temperature Cool (0) Movement Core (50) Location -5/Factory Parts ------- > --- POWER (2) -------- (None) > --- PROPULSION (5) --- (None) > --- UTILITY (8) ------ (None) > --- WEAPON (2) ------- (None) > --- INVENTORY (5) ---- Medium Reactive Plating System Shield Authchip [R/Combat] Authchip [Processor] Peak State ------------ > --- POWER ------------ (None) > --- PROPULSION ------- (None) > --- UTILITY ---------- Weight Redist. System Improved Signal Interpreter Active Sensor Suite Melee Analysis Suite System Shield > --- WEAPON ----------- Flak Cannon > --- INVENTORY -------- Medium Reactive Plating System Shield Authchip [R/Combat] [Rating: 42] Favorites ----------- Power Ion Engine Engine Ion Engine Power Core Light Nuclear Core Propulsion Aluminum Leg Treads Light Treads Leg Aluminum Leg Wheel Wheel Hover Unit Gravmag System Flight Unit Surge Thruster Utility System Shield Device Reaction Control System Storage Large Storage Unit Processor Melee Analysis Suite Hackware System Shield Protection Improved Light Armor Plating Weapon Greatsword Energy Gun EM Pulse Gun Energy Cannon Advanced Beam Cannon Ballistic Gun Light Assault Rifle Ballistic Cannon Flak Cannon Launcher Smartbomb Launcher Special Weapon Welding Torch Slashing Weapon Greatsword Piercing Weapon Spear Special Melee Weapon Improved Datajack Build | -11 -10 -9 -9 -9 -8 -7 -6 -6 -5 ------- Run | Yrd Mat Mat Sto Gar Mat Fac Fac DSF Fac Slots Evolved 10 | . . 2 . . 2 2 2 . 2 Power 1 | . . . . . . 1 . . . Propulsion 3 | . . . . . . 1 1 . 1 Utility 6 | . . 2 . . 2 . 1 . 1 Weapon . | . . . . . . . . . . Parts Attached 86 | 6 1 2 9 4 20 31 . 12 1 Power 8 | 1 . . 2 . 3 2 . . . Engine 6 | 1 . . 2 . 2 1 . . . Core 2 | . . . . . 1 1 . . . Reactor . | . . . . . . . . . . Propulsion 22 | 2 . . 2 . 4 11 . 3 . Treads 2 | . . . 2 . . . . . . Leg 11 | . . . . . 3 8 . . . Wheel 2 | 2 . . . . . . . . . Hover 2 | . . . . . . 2 . . . Flight 5 | . . . . . 1 1 . 3 . Utility 33 | 1 1 2 2 . 10 11 . 6 . Device 16 | . 1 . 1 . 4 6 . 4 . Storage 2 | 1 . . . . 1 . . . . Processor 6 | . . 1 . . 1 3 . 1 . Hackware 3 | . . . . . 2 1 . . . Protection 6 | . . 1 1 . 2 1 . 1 . Artifact . | . . . . . . . . . . Weapon 23 | 2 . . 3 4 3 7 . 3 1 Energy Gun 6 | 1 . . . . 1 4 . . . Energy Cannon 2 | . . . . 2 . . . . . Ballistic Gun 6 | 1 . . 2 2 1 . . . . Ballistic Cannon 2 | . . . . . 1 . . 1 . Launcher 1 | . . . . . . . . 1 . Special Weapon 1 | . . . 1 . . . . . . Impact Weapon . | . . . . . . . . . . Slashing Weapon 1 | . . . . . . 1 . . . Piercing Weapon 2 | . . . . . . 1 . . 1 Special Melee Weapon 2 | . . . . . . 1 . 1 . Unidentified Prototypes 5 | . . . 1 1 . 2 . 1 . Parts Lost 54 | . . . 10 1 9 15 . 12 7 Power 4 | . . . . . 1 2 . 1 . Propulsion 17 | . . . 4 . 1 7 . 5 . Utility 21 | . . . 3 . 5 4 . 4 5 Weapon 12 | . . . 3 1 2 2 . 2 2 Highest Loss Streak 9 | . . . 5 1 5 9 . 7 6 To Critical Strikes . | . . . . . . . . . . Average Slot Usage (%) 63 | . 98 97 73 11 52 79 60 53 27 Engine 4 | . 14 11 9 . 3 4 . . . Core 3 | . . . . . 2 5 6 4 . Leg 9 | . . . . . 10 18 6 . . Wheel 2 | . 28 22 10 . . . . . . Device 7 | . 12 11 5 . 3 10 6 8 8 Storage 5 | . 14 11 5 . 7 5 . . . Processor 6 | . . 11 9 . 5 3 20 17 8 Hackware 8 | . . . . . 9 13 6 6 4 Protection 3 | . . 9 7 . 1 5 . 1 . Energy Gun 2 | . 14 11 4 . 2 1 . . . Ballistic Gun 3 | . 14 11 14 9 2 . . . . Ballistic Cannon 1 | . . . . . 3 . . 2 3 Slashing Weapon 1 | . . . . . . 3 . . . Peak Build Rating 42 | 6 7 10 12 4 21 38 30 42 42 Average Rating 21 | 3 6 9 7 1 13 30 30 31 32 On Entrance 14 | . 6 7 10 2 . 21 30 30 42 Naked Turns 64 | . . . . 12 29 . . . 23 Heaviest Build 48 | 14 15 20 23 5 32 48 9 32 10 Greatest Support 41 | 20 20 20 40 3 31 41 9 15 9 Greatest Overweight (x) 10 | . . . 1 1 8 10 . 3 1 Average Overweight (x) . | . . . . . . . . . . Largest Inventory Capacity 15 | 8 8 8 8 5 15 15 5 5 5 Average Capacity 10 | 6 8 8 6 5 13 12 5 5 5 Most Carried 12 | 2 3 4 7 5 11 12 5 5 5 Average Carried 6 | . 1 2 4 3 5 8 5 3 4 Final Capacity 15 | 8 8 8 5 5 15 15 5 5 5 Final Carried 10 | . 3 3 4 3 10 10 5 4 4 Class Distribution -------------------- 51% | Hacker-Mutant 22% | Mutant 19% | Hacker-Gladiator 3% | Scavenger-Mutant Dominant Class ---------------- Mutant | -10/Materials Mutant | -9/Materials Mutant | -9/Storage Mutant | -9/Garrison Hacker-Mutant | -8/Materials Hacker-Gladiator | -7/Factory Scavenger-Mutant | -6/Factory Hacker-Mutant | -6/DSF Hacker-Mutant | -5/Factory Resources | -11 -10 -9 -9 -9 -8 -7 -6 -6 -5 ----------- Run | Yrd Mat Mat Sto Gar Mat Fac Fac DSF Fac Matter Collected 1198 | 118 . 59 189 . 360 221 . 246 5 Remotely . | . . . . . . . . . . Salvage Created 1926 | . . 59 174 . 469 844 . 300 80 Parts 131 | . . 4 15 . 32 62 . 15 3 Haulers Intercepted . | . . . . . . . . . . Recyclers Shooed 1 | . . . . . 1 . . . . Parts Field Recycled . | . . . . . . . . . . Retrieved Matter . | . . . . . . . . . . Parts Self-Destructed . | . . . . . . . . . . Prevented . | . . . . . . . . . . Kills | -11 -10 -9 -9 -9 -8 -7 -6 -6 -5 ------- Run | Yrd Mat Mat Sto Gar Mat Fac Fac DSF Fac Combat Hostiles Destroyed 46 | . . 1 4 . 15 15 . 10 1 Melee 18 | . . . . . . 14 . 3 1 Guns 10 | . . 1 4 . 4 1 . . . Cannons 11 | . . . . . 10 . . 1 . AOE 7 | . . . . . 1 . . 6 . Classes Destroyed 13 | . . 1 2 . 5 4 . 1 . Worker 1 | . . . . . 1 . . . . Builder 3 | . . . . . 3 . . . . Recycler 3 | . . . . . 1 2 . . . Operator 1 | . . . . . . 1 . . . Watcher 2 | . . . . . 1 1 . . . Swarmer 12 | . . . 1 . 7 . . 4 . Cutter 6 | . . . . . . 3 . 3 . Grunt 13 | . . . . . 7 6 . . . Duelist 1 | . . . 1 . . . . . . Sentry 5 | . . 1 2 . 1 . . . 1 Hunter 5 | . . . . . . 3 . 2 . Programmer 3 | . . . . . . 3 . . . Heavy 1 | . . . . . . . . 1 . Best Kill Streak 9 | . . 1 2 . 9 4 . 6 1 Combat Bots Only 6 | . . 1 2 . 5 3 . 6 1 Max Kills in Single Turn 4 | . . 1 1 . 4 1 . 3 1 Gunslinging . | . . . . . . . . . . Exploded 3 | . . . . . 1 . . 3 . Melee 1 | . . . . . . 1 . 1 1 Uniques/NPCs Destroyed . | . . . . . . . . . . Combat | -11 -10 -9 -9 -9 -8 -7 -6 -6 -5 -------- Run | Yrd Mat Mat Sto Gar Mat Fac Fac DSF Fac Hostile Shots Fired 736 | . 4 13 156 14 130 258 . 86 75 Missed 219 | . 1 6 47 3 39 83 . 15 25 Damage Taken 6513 | . 22 79 1160 92 983 2010 . 1267 900 Core 2478 | . 7 . 289 67 226 667 . 579 643 Absorbed by Shields . | . . . . . . . . . . Ignored by Resistances 2089 | . 6 23 348 32 291 570 . 575 244 Core Remaining (%) 50 | 100 97 . . 11 58 4 . 31 . Volleys Fired 86 | . . 4 8 3 46 9 . 15 1 Largest 2 | . . 2 2 1 1 2 . 1 1 Hottest 106 | . . 60 60 20 56 106 . 46 44 Shots Fired 100 | . . 8 16 3 46 11 . 15 1 Gun 58 | . . 8 16 3 20 11 . . . Cannon 38 | . . . . . 26 . . 11 1 Launcher 4 | . . . . . . . . 4 . Special . | . . . . . . . . . . Kinetic 65 | . . 4 9 3 37 . . 11 1 Thermal 18 | . . . . . 9 9 . . . Explosive 4 | . . . . . . . . 4 . Electromagnetic 13 | . . 4 7 . . 2 . . . Robot Hit Streak 20 | . . 7 14 4 17 15 . 20 2 Robot Miss Streak 4 | . . 1 2 . 4 . . 3 1 Penetration Max . | . . . . . . . . . . Secondary Targets . | . . . . . . . . . . Shots Hit Robots 149 | . . 7 12 3 45 42 . 29 11 Core Hits 121 | . . 2 8 1 55 24 . 28 3 Critical Kills . | . . . . . . . . . . Critical Parts Destroyed . | . . . . . . . . . . Critical Strikes 5 | . . . . . 1 4 . . . Burn 1 | . . . . . 1 . . . . Sever 4 | . . . . . . 4 . . . Melee Attacks 65 | . . . . . . 39 . 16 10 Impact . | . . . . . . . . . . Slashing 21 | . . . . . . 21 . . . Piercing 43 | . . . . . . 17 . 16 10 Sneak Attacks 2 | . . . . . . 2 . . . Combat Hostiles . | . . . . . . . . . . Follow-up Attacks . | . . . . . . . . . . Damage Inflicted 5087 | . . 87 161 23 1230 1669 . 1583 334 Guns 614 | . . 87 149 23 221 134 . . . Cannons 749 | . . . . . 516 . . 207 26 Explosions 1577 | . . . . . 493 . . 1084 . Melee 2127 | . . . . . . 1527 . 292 308 Ramming 20 | . . . 12 . . 8 . . . Kinetic 997 | . . 54 81 23 606 . . 207 26 Thermal 254 | . . . . . 131 123 . . . Explosive 1577 | . . . . . 493 . . 1084 . Electromagnetic 112 | . . 33 68 . . 11 . . . Impact . | . . . . . . . . . . Slashing 1137 | . . . . . . 1137 . . . Piercing 990 | . . . . . . 390 . 292 308 Highest Corruption 7 | . . . . . . 7 . . . Average Corruption 4 | . . . . . . 4 . . . Corruption Purged 4 | . . . . . . 4 . . . Corruption Blocked . | . . . . . . . . . . Effects 8 | . . . . . . 8 . . . Message Errors 1 | . . . . . . 1 . . . Matter Fused 3 | . . . . . . 3 . . . Parts Rejected 2 | . . . . . . 2 . . . Data Loss (minor) 2 | . . . . . . 2 . . . Overload Shots . | . . . . . . . . . . Overflow Damage 132 | . . . . . 39 63 . 15 15 Projectiles 1 | . . . . . . . . 1 . Explosions 53 | . . . . . 39 . . 14 . Melee 78 | . . . . . . 63 . . 15 Knockbacks 26 | . . . . . 20 . . 6 . Impact . | . . . . . . . . . . Kinetic 25 | . . . . . 19 . . 6 . Secondary 1 | . . . . . 1 . . . . Self-Inflicted Damage 220 | . . . 3 . 128 . . 89 . Shots 4 | . . . . . 2 . . 2 . Rammed 6 | . . . 6 . . . . . . Targets Rammed 8 | . . . 6 . . 2 . . . Kicked 2 | . . . . . . 2 . . . Crushed . | . . . . . . . . . . Highest Temperature 104 | . . 39 27 4 104 16 . 3 . Average Temperature 23 | . . 20 8 4 40 4 . 3 . Received Heat Transfer 1707 | . . 42 636 66 486 270 . . 207 Siege Activations . | . . . . . . . . . . Robots Corrupted . | . . . . . . . . . . Combat Hostiles . | . . . . . . . . . . Parts Fried . | . . . . . . . . . . Impact Corruptions . | . . . . . . . . . . Robots Melted . | . . . . . . . . . . Combat Hostiles . | . . . . . . . . . . Parts Melted 5 | . . . 1 . 4 . . . . Heat Transferred 573 | . . . . . 407 166 . . . Parts Sabotaged . | . . . . . . . . . . Parts Stolen . | . . . . . . . . . . Parts Stripped . | . . . . . . . . . . Power Chain Reactions . | . . . . . . . . . . Alert | -11 -10 -9 -9 -9 -8 -7 -6 -6 -5 ------- Run | Yrd Mat Mat Sto Gar Mat Fac Fac DSF Fac Peak Influence 459 | . 24 98 459 306 342 150 40 225 155 Initial 261 | . . 8 34 261 124 23 40 24 102 Average 104 | . 12 20 275 267 117 42 40 132 121 Maximum Alert Level 2 | . . . 2 1 1 . . 1 . Low Security (%) 80 | 100 100 100 24 . 82 100 100 58 100 Level 1 19 | . . . 71 100 17 . . 41 . Level 2 . | . . . 4 . . . . . . Level 3 . | . . . . . . . . . . Level 4 . | . . . . . . . . . . Level 5 . | . . . . . . . . . . High Security . | . . . . . . . . . . Max Security . | . . . . . . . . . . Sterilizations 1 | . . . . . . . . 1 . Squads Dispatched 14 | . . . 5 . 1 4 . 2 2 Investigation 1 | . . . 1 . . . . . . Extermination 2 | . . . . . . 1 . . 1 Reinforcement 9 | . . . 2 . 1 3 . 2 1 Assault 2 | . . . 2 . . . . . . Garrison . | . . . . . . . . . . Intercept . | . . . . . . . . . . Searches Triggered . | . . . . . . . . . . Construction Impeded . | . . . . . . . . . . Haulers Reinforced . | . . . . . . . . . . Active Scanning Responses . | . . . . . . . . . . Cargo Convoy Interrupts 1 | . . . . . . 1 . . . Stealth | -11 -10 -9 -9 -9 -8 -7 -6 -6 -5 --------- Run | Yrd Mat Mat Sto Gar Mat Fac Fac DSF Fac Distress Signals 2 | . . . 1 . . 1 . . . Communications Jammed . | . . . . . . . . . . Distress Signals . | . . . . . . . . . . Times Spotted 126 | . 3 5 32 6 24 35 . 13 8 Peak Tracking Total 15 | . 4 4 15 3 7 8 . 5 6 Tactical Retreats 14 | . . 1 5 1 . 5 . 2 . Traps | -11 -10 -9 -9 -9 -8 -7 -6 -6 -5 ------- Run | Yrd Mat Mat Sto Gar Mat Fac Fac DSF Fac Traps Triggered 4 | . . . 1 1 . 1 . . 1 Indirectly . | . . . . . . . . . . Trap Hack Attempts 3 | . . . . . . . . 3 . Triggered . | . . . . . . . . . . Disarmed 1 | . . . . . . . . 1 . Reprogrammed . | . . . . . . . . . . Reused . | . . . . . . . . . . Traps Extracted . | . . . . . . . . . . Installed . | . . . . . . . . . . Triggered . | . . . . . . . . . . Machines | -11 -10 -9 -9 -9 -8 -7 -6 -6 -5 ---------- Run | Yrd Mat Mat Sto Gar Mat Fac Fac DSF Fac Machines Disabled 2 | . . . . . 2 . . . . Max in Single Turn 1 | . . . . . 1 . . . . Machines Repaired . | . . . . . . . . . . Machines Dismantled . | . . . . . . . . . . Machines Sabotaged . | . . . . . . . . . . Overloaded Fab Kills . | . . . . . . . . . . Hacking | -11 -10 -9 -9 -9 -8 -7 -6 -6 -5 --------- Run | Yrd Mat Mat Sto Gar Mat Fac Fac DSF Fac Machines Accessed 19 | . 2 1 3 1 3 6 1 . 2 Terminals 12 | . 1 1 1 1 3 2 1 . 2 Fabricators 1 | . . . . . . 1 . . . Repair Stations . | . . . . . . . . . . Recycling Units 4 | . 1 . 1 . . 2 . . . Scanalyzers 1 | . . . . . . 1 . . . Garrison Access 1 | . . . 1 . . . . . . Total Hacks 39 | . 3 2 6 2 10 9 3 . 4 Successful 15 | . 2 . 1 . 7 3 1 . 1 Failed 24 | . 1 2 5 2 3 6 2 . 3 Catastrophic 5 | . . 1 3 . . 1 . . . Database Lockouts . | . . . . . . . . . . Manual . | . . . . . . . . . . Terminals 30 | . 2 2 3 2 10 4 3 . 4 Fabricators 1 | . . . . . . 1 . . . Repair Stations . | . . . . . . . . . . Recycling Units 6 | . 1 . 2 . . 3 . . . Scanalyzers 1 | . . . . . . 1 . . . Garrison Access 1 | . . . 1 . . . . . . Terminal Hacks 10 | . 1 . . . 7 . 1 . 1 Open DSF 1 | . . . . . . . 1 . . Emergency Access Points 1 | . . . . . 1 . . . . Machine Index 2 | . 1 . . . . . . . 1 Terminal Index 1 | . . . . . 1 . . . . Alert Level 1 | . . . . . 1 . . . . Unreport Threat 2 | . . . . . 2 . . . . Surveillance Status 1 | . . . . . 1 . . . . Recall Investigation 1 | . . . . . 1 . . . . Fabricator Hacks 1 | . . . . . . 1 . . . Network Status 1 | . . . . . . 1 . . . Repair Station Hacks . | . . . . . . . . . . Recycling Unit Hacks 3 | . 1 . . . . 2 . . . Report Inventory 3 | . 1 . . . . 2 . . . Scanalyzer . | . . . . . . . . . . Garrison Access Hacks 1 | . . . 1 . . . . . . Unlock Access 1 | . . . 1 . . . . . . Unauthorized Hacks . | . . . . . . . . . . Terminals . | . . . . . . . . . . Fabricators . | . . . . . . . . . . Repair Stations . | . . . . . . . . . . Recycling Units . | . . . . . . . . . . Scanalyzers . | . . . . . . . . . . Garrison Access . | . . . . . . . . . . Data Cores Recovered 1 | . . . . . . 1 . . . Used 1 | . . . . . . 1 . . . Hacking Detections 13 | . . 1 3 1 2 4 . . 2 Full Trace Events 1 | . . . 1 . . . . . . Feedback Events . | . . . . . . . . . . Feedback Blocked . | . . . . . . . . . . Robot Schematics Acquired . | . . . . . . . . . . Robots Built . | . . . . . . . . . . Authchips . | . . . . . . . . . . Time . | . . . . . . . . . . Total Robot Build Rating . | . . . . . . . . . . Part Schematics Acquired . | . . . . . . . . . . Parts Built . | . . . . . . . . . . Authchips . | . . . . . . . . . . Time . | . . . . . . . . . . Total Part Build Rating . | . . . . . . . . . . Parts Repaired . | . . . . . . . . . . Time . | . . . . . . . . . . Parts Recycled . | . . . . . . . . . . Recycled Matter . | . . . . . . . . . . Retrieved Matter . | . . . . . . . . . . Retrieved Components . | . . . . . . . . . . Parts Scanalyzed . | . . . . . . . . . . Part Schematics Acquired . | . . . . . . . . . . Parts Damaged . | . . . . . . . . . . Bothacking | -11 -10 -9 -9 -9 -8 -7 -6 -6 -5 ------------ Run | Yrd Mat Mat Sto Gar Mat Fac Fac DSF Fac Used RIF Installer . | . . . . . . . . . . Robots Hacked 1 | . . . . . . 1 . . . Non-combat . | . . . . . . . . . . Combat 1 | . . . . . . 1 . . . Robot Hacks Applied 1 | . . . . . . 1 . . . parse_system 1 | . . . . . . 1 . . . Relay Couplers Released . | . . . . . . . . . . Fabnet Peak Effective % . | . . . . . . . . . . Robots Rewired . | . . . . . . . . . . Allies Hacked . | . . . . . . . . . . Hacks Repelled . | . . . . . . . . . . Allies | -11 -10 -9 -9 -9 -8 -7 -6 -6 -5 -------- Run | Yrd Mat Mat Sto Gar Mat Fac Fac DSF Fac Total Allies 2 | . . . 2 . . . . . . Largest Group 2 | . . . 2 . . . . . . Highest-Rated Group 62 | . . . 62 . . . . . . Highest-Rated Ally 31 | . . . 31 . . . . . . Total Orders . | . . . . . . . . . . Ally Attacks 34 | . . . 34 . . . . . . Total Damage 474 | . . . 474 . . . . . . Kills 9 | . . . 9 . . . . . . Allies Corrupted . | . . . . . . . . . . Allies Melted . | . . . . . . . . . . Intel | -11 -10 -9 -9 -9 -8 -7 -6 -6 -5 ------- Run | Yrd Mat Mat Sto Gar Mat Fac Fac DSF Fac Robot Analysis Total . | . . . . . . . . . . Derelict Logs Recovered . | . . . . . . . . . . Drone Launches . | . . . . . . . . . . Drone Recoveries . | . . . . . . . . . . Exploration | -11 -10 -9 -9 -9 -8 -7 -6 -6 -5 ------------- Run | Yrd Mat Mat Sto Gar Mat Fac Fac DSF Fac Turns Passed 3247 | 40 81 113 332 165 668 1307 10 262 269 Spaces Moved 2469 | 39 95 121 278 259 381 782 15 223 276 Core 917 | 9 . . 80 259 146 62 . 85 276 Treads 67 | . . . 67 . . . . . . Legs 703 | . . . . . 233 466 . 4 . Wheels 377 | 30 95 121 131 . . . . . . Hover 286 | . . . . . . 239 15 32 . Flight 119 | . . . . . 2 15 . 102 . Fastest Speed 29 | 50 80 80 50 50 50 50 70 29 50 Average Speed 101 | 73 80 80 97 52 139 123 70 73 84 Slowest Speed 550 | 80 80 80 160 100 520 550 70 200 100 Overloaded Moves . | . . . . . . . . . . Propulsion Burnouts . | . . . . . . . . . . Robots Hopped 1 | . . . . . . 1 . . . Cave-ins Triggered . | . . . . . . . . . . Exploration Rate (%) 28 | 3 21 16 53 34 31 26 1 95 8 Regions Visited 9 Branch Regions 1 Pre-discovered Areas . | . . . . . . . . . . Known Exits Taken 4 | . . 1 1 . . 1 1 . . Unknown Exits Taken 3 | 1 1 . . . 1 . . . . Scrap Searched . | . . . . . . . . . . Spaces Dug 3 | . . . . . . 2 . 1 . Terrain Destroyed 99 | . . . . . 57 2 . 40 . Melee 3 | . . . . . . 2 . 1 . Projectile . | . . . . . . . . . . AOE 96 | . . . . . 57 . . 39 . Terrain Rammed . | . . . . . . . . . . Walls Destroyed . | . . . . . . . . . . Machines Disabled . | . . . . . . . . . . Actions | -11 -10 -9 -9 -9 -8 -7 -6 -6 -5 --------- Run | Yrd Mat Mat Sto Gar Mat Fac Fac DSF Fac Total 3001 | 50 99 128 325 286 476 1045 14 282 296 Wait 173 | . . . 10 2 . 154 . . 7 Move 2459 | 38 94 120 278 258 380 779 14 222 276 Hop 1 | . . . . . . 1 . . . Pick Up 80 | 6 4 2 9 . 26 21 . 11 1 Fast Attach . | . . . . . . . . . . Attach 78 | 6 1 2 8 3 19 26 . 12 1 Detach 10 | . . . 1 2 2 4 . 1 . Swap 8 | . . . 1 1 1 5 . . . Drop 15 | . . . 4 2 2 5 . 2 . Fire 86 | . . 4 8 3 46 9 . 15 1 Melee 65 | . . . . . . 39 . 16 10 Ram 4 | . . . 4 . . . . . . Kick 2 | . . . . . . 2 . . . Crush 2 | . . . 2 . . . . . . Escape Stasis 15 | . . . . 15 . . . . . Rewire . | . . . . . . . . . . Trap 3 | . . . . . . . . 3 . Miscellaneous . | . . . . . . . . . . Route ------- -11/Scrapyard -10/Materials (discovered 2 exits: *Mat / [*Min]) -9/Materials -9/Storage (discovered 2 exits: *Mat / Gar) -9/Garrison -8/Materials -7/Factory -6/Factory -6/DSF -5/Factory History --------- Turn | Location | Event 28 | -11/Scrapyard | Discovered new exit (range 15) 41 | -11/Scrapyard | Entered Materials 70 | -10/Materials | Discovered new exit (range 16) 109 | -10/Materials | Discovered new exit (range 15) 122 | -10/Materials | Entered another Materials area 122 | -9/Materials | Evolved 2 slots: Utility x2 149 | -9/Materials | Discovered new exit (range 12) 234 | -9/Materials | Identified exit to Storage 235 | -9/Materials | Entered Storage 241 | -9/Storage | Met a pair of Derelict thieves 304 | -9/Storage | Build established: Mutant 447 | -9/Storage | Lost 5 parts (2n1u2w) 474 | -9/Storage | Core integrity fell below 50% 561 | -9/Storage | Discovered new exit (range 10) 567 | -9/Storage | Identified exit to Garrison 567 | -9/Storage | Entered Garrison 576 | -9/Garrison | Lost 4 parts (2n1u1w) 657 | -9/Garrison | Discovered new exit (range 8) 681 | -9/Garrison | Triggered checkpoint 721 | -9/Garrison | Core integrity fell below 20% 732 | -9/Garrison | Entered Materials 732 | -8/Materials | Evolved 2 slots: Utility x2 1048 | -8/Materials | Build established: Hacker-Mutant 1232 | -8/Materials | Lost 5 parts (1p1n2u1w) 1390 | -8/Materials | Discovered new exit (range 5) 1400 | -8/Materials | Entered Factory 1400 | -7/Factory | Evolved 2 slots: Power x1, Propulsion x1 1936 | -7/Factory | Build established: Hacker-Gladiator 2234 | -7/Factory | Cargo convoy interrupted 2289 | -7/Factory | Lost 3 parts (2p1w) 2425 | -7/Factory | Core integrity fell below 50% 2472 | -7/Factory | Lost 9 parts (6n2u1w) 2570 | -7/Factory | Build established: Hacker-Mutant 2631 | -7/Factory | Core integrity fell below 20% 2695 | -7/Factory | Discovered new exit (range 10) 2703 | -7/Factory | Identified exit to Factory 2707 | -7/Factory | Entered another Factory area 2707 | -6/Factory | Evolved 2 slots: Propulsion x1, Utility x1 2717 | -6/Factory | Identified exit to DSF 2717 | -6/Factory | Entered DSF 2756 | -6/DSF | Additional patrols routed to DSF 2781 | -6/DSF | Lost 4 parts (2n2u) 2861 | -6/DSF | Core integrity fell below 50% 2870 | -6/DSF | Found Prototype Device 2898 | -6/DSF | Sterilization system engaged 2904 | -6/DSF | Lost 7 parts (3n2u2w) 2918 | -6/DSF | Ambient heat levels rising (+10) 2922 | -6/DSF | Identified Active Sensor Suite 2933 | -6/DSF | Ambient heat levels rising (+10) 2948 | -6/DSF | Ambient heat levels rising (+10) 2963 | -6/DSF | Ambient heat levels rising (+10) 2965 | -6/DSF | Discovered new exit (range 15) 2978 | -6/DSF | Ambient heat levels rising (+10) 2978 | -6/DSF | Identified exit to Factory 2979 | -6/DSF | Entered Factory 2979 | -5/Factory | Evolved 2 slots: Propulsion x1, Utility x1 3223 | -5/Factory | Core integrity fell below 50% 3225 | -5/Factory | Lost 6 parts (5u1w) 3248 | -5/Factory | Self-destructed Last Messages --------------- Slug penetrates Wall. Penetrated by Slug. Destroyed Adv. Heat Sink. Penetrated by Slug. Slug penetrates Door. Y-64 Sentinel heat spikes uncontrollably. Y-64 Sentinel heat short circuits Neutrino Core. Penetrated by Slug. Connecting with DSF Access... Slug penetrates Subcomponent Replicator. Subcomponent Replicator disabled. Y-64 Sentinel destroyed. Slug penetrates Reinforced Barrier. Acquired 5 matter. Destroyed Lgt. Angular Momentum Engine. Spear destroyed. Slug penetrates Wall. ALERT: Rogue bot located, Programmers report to Factory Zone 8H. Penetrated by Slug. Map ----- +----------------------------------------------------+ | ?????# """ ## ## #????????????????????? | | ?????# """ ## T# #????????????????????? | | ?????# "" ## # " #????????????????????? | | ?????# "" ## ## " = #?????#??????????????? | | ?????# ## ## #???? #??????????????? | | #????? ## ######+####??? #??????????????? | | #??????####### #### #### #??????????????? | | ######???????# ^ #??????????????? | | # ???????# ! +??????????????? | | # #?????# #??????????????? | | # """ #?????######## ###### #??????????????? | | # """ #?????######### ##???##+#??????????????? | | # """ #?????? # #?? #??????????????? | | # #??????"" """ # # #??????????????? | | # """ #??????"" """ ; + #??????????????? | | # """ #??????"" """ # # #??????????????? | | + """ #?????? # #? #??????????????? | | # #???? ?# # "" #??????????????? | | # #????########?# # "" #??????????????? | | # #???????###???# + """ #??????????????? | | ########?###### ??# # """ #??????????????? | | #????# [? #""""??# #??""" ???????????????? | | #????# ? #"""" ?# #???? ???????????????? | | #????# "?" #"""" ?# #??????##??????????????? | | #????# """ #"""" # A############???????????? | | #????# """ #"""" # @R #????????? | | #????# ! #"""" + w t #????????? | | #????# """ #"""" # w ????????? | | #????# """ # !# ########### ?????????? | | #????# """ # ?# #??????????????????????? | | ###### # ?# #??????????????????????? | | + """ ######## #??????????????????????? | | ####### """ # #??????????????????????? | | # """ # #??????????????????????? | | """"" # # #??????????????????????? | | ""T"" # """ + ########??????????????????????? | | # """ # #?????????????????????????????? | | "" # """ ] # #?????????????????????????????? | | # # #?????????????????????????????? | | ################ #?????????????????????????????? | | ???????????????# #?????????????????????????????? | | ???????????????# #?????????????????????????????? | | ???????????????# +?????????????????????????????? | | ???????????????# #?????????????????????????????? | | ???????????????# #?????????????????????????????? | | ???????????????# #?????????????????????????????? | | ??????????????? ?????????????????????????????? | | ??????????????? ?????????????????????????????? | | ??????????????? ?????????????????????????????? | | ???????????????+#####????????????????????????????? | +----------------------------------------------------+ Best States ------------- Heat Dissipation 40 Energy Generation 19 Energy Capacity 310 Matter Stores 300 Matter Capacity 300 Sight Range 20 Robot Scan Range 20 Terrain Scan Density 10 Additional Mass Support 9 Armor Coverage 225 Resistance: KI 50 Resistance: TH 20 Resistance: EX 20 Resistance: EM 20 Resistance: I 20 Resistance: S 20 Resistance: P 20 Evasion (%) 72 Melee Accuracy 10 Recoil Reduction 2 Force Boost 20 Offensive Hacking 20 Defensive Hacking 10 Authchip Count 2 Item Schematics ----------------- None Robot Schematics ------------------ None Fabricated ------------ Nothing Alien Tech Used ----------------- None Achievements -------------- None Challenges ------------ None Game ------ Seed ForceBiocellArray Manual? 0 Play Time 01:12:13 Cumulative 22.8 hours Start 2024.09.07 @ 19:25:59 End 2024.09.07 @ 21:00:40 Sessions 3 Manual Loads 0 Difficulty Adventurer Special Mode None Game No. 18 Rogue 0 Adventurer 18 Explorer 0 Win Type - Total 0 Types 0/0/0/0/0/0/0/0/0 Lore% 8 Gallery% 22 Achievement% 20 Wizard Run 0 Options --------- Layout 1 ASCII 0 Keyboard 0 Movement Mouse Keybinds 0 Fullscreen 1 Font 32/SmallcapsGlow Map View 25x17 Zoom Use 3% Tactical HUD 0 Map Filters NONE Filters NONE Steam 1 RUN: 58237339-4194-46ad-ada0-74a530a07b75